[Event "Live Chess"]
[Site "Chess.com"]
[Date "2023.05.21"]
[Round "-"]
[White "PantherCal"]
[Black "NotHarryV"]
[Result "1-0"]
[WhiteElo "1779"]
[BlackElo "1505"]
[TimeControl "300"]
[EndTime "5:35:54 PDT"]
[Termination "PantherCal won by resignation"]

1. e4 {[%clk 0:04:56.4]} 1... c6 {[%clk 0:04:58.3]} 2. d4 {[%clk 0:04:55.2]}
2... d5 {[%clk 0:04:57.6]} 3. e5 {[%clk 0:04:54.9]} 3... c5 {[%clk 0:04:56.8]}
4. dxc5 {[%clk 0:04:53.2]} 4... e6 {[%clk 0:04:54.8]} 5. a3 {[%clk 0:04:51.4]}
5... Nc6 {[%clk 0:04:49.6]} 6. Nf3 {[%clk 0:04:50.8]} 6... a5 {[%clk 0:04:47.9]}
7. c4 {[%clk 0:04:48.4]} 7... Bxc5 {[%clk 0:04:45.2]} 8. Nc3 {[%clk 0:04:45.2]}
8... Nge7 {[%clk 0:04:37.3]} 9. Bg5 {[%clk 0:04:41.5]} 9... d4 {[%clk
0:04:20.5]} 10. Nb5 {[%clk 0:04:36]} 10... a4 {[%clk 0:04:11.8]} 11. Bd3 {[%clk
0:04:29.7]} 11... Qd7 {[%clk 0:03:45.3]} 12. O-O {[%clk 0:04:24.4]} 12... h6
{[%clk 0:03:38.3]} 13. Bf4 {[%clk 0:04:23.3]} 13... Nf5 {[%clk 0:03:33.4]} 14.
Qc2 {[%clk 0:04:16]} 14... O-O {[%clk 0:03:27]} 15. Rad1 {[%clk 0:04:11.7]}
15... b6 {[%clk 0:03:24.9]} 16. Rd2 {[%clk 0:03:10.4]} 16... Ba6 {[%clk
0:03:07.2]} 17. Rfd1 {[%clk 0:03:06.7]} 17... Bxb5 {[%clk 0:02:40.8]} 18. cxb5
{[%clk 0:03:06.6]} 18... Qc7 {[%clk 0:02:32.1]} 19. bxc6 {[%clk 0:03:03.5]}
19... Qxc6 {[%clk 0:02:32]} 20. Be4 {[%clk 0:03:01.3]} 20... Qc7 {[%clk
0:02:29.1]} 21. Bxa8 {[%clk 0:02:55.5]} 1-0

[Event "Live Chess"]
[Site "Chess.com"]
[Date "2023.05.21"]
[Round "-"]
[White "mattihelenius2"]
[Black "yarek"]
[Result "0-1"]
[WhiteElo "491"]
[BlackElo "1868"]
[TimeControl "300"]
[EndTime "5:36:09 PDT"]
[Termination "yarek won by resignation"]

1. d4 {[%clk 0:04:58.3]} 1... c6 {[%clk 0:04:52.9]} 2. c4 {[%clk 0:04:56.9]}
2... d5 {[%clk 0:04:51.6]} 3. Nf3 {[%clk 0:04:52.4]} 3... g6 {[%clk 0:04:49.9]}
4. c5 {[%clk 0:04:50.5]} 4... Bg7 {[%clk 0:04:44.4]} 5. Bg5 {[%clk 0:04:38.7]}
5... h6 {[%clk 0:04:39]} 6. Bf4 {[%clk 0:04:35]} 6... Nf6 {[%clk 0:04:27.6]} 7.
Bxb8 {[%clk 0:04:23.1]} 7... Rxb8 {[%clk 0:04:25.6]} 8. Nc3 {[%clk 0:04:22.6]}
8... O-O {[%clk 0:04:18.5]} 9. e3 {[%clk 0:04:21.1]} 9... Bg4 {[%clk 0:04:13.9]}
10. h3 {[%clk 0:04:18.7]} 10... Bxf3 {[%clk 0:04:13.2]} 11. Qxf3 {[%clk
0:04:18.3]} 11... Re8 {[%clk 0:03:55.8]} 12. Bd3 {[%clk 0:04:02.6]} 12... e5
{[%clk 0:03:49.3]} 13. e4 {[%clk 0:03:56.3]} 13... exd4 {[%clk 0:03:44]} 14. Ne2
{[%clk 0:03:45.7]} 14... dxe4 {[%clk 0:03:41.7]} 15. Bxe4 {[%clk 0:03:43.5]}
15... Nxe4 {[%clk 0:03:39.5]} 16. Nxd4 {[%clk 0:03:41]} 16... Ng5+ {[%clk
0:03:27.6]} 17. Qe2 {[%clk 0:03:28.9]} 17... Rxe2+ {[%clk 0:03:24.4]} 18. Kxe2
{[%clk 0:03:28.8]} 0-1

[Event "Live Chess"]
[Site "Chess.com"]
[Date "2023.05.21"]
[Round "-"]
[White "mach247"]
[Black "DoYouLikeCurry"]
[Result "0-1"]
[WhiteElo "1345"]
[BlackElo "1441"]
[TimeControl "300"]
[EndTime "5:36:11 PDT"]
[Termination "DoYouLikeCurry won by resignation"]

1. e4 {[%clk 0:04:59.7]} 1... c6 {[%clk 0:04:57.7]} 2. d4 {[%clk 0:04:58.5]}
2... d5 {[%clk 0:04:56.2]} 3. exd5 {[%clk 0:04:58.3]} 3... cxd5 {[%clk
0:04:55.4]} 4. Nf3 {[%clk 0:04:58]} 4... Nf6 {[%clk 0:04:54.9]} 5. Bd3 {[%clk
0:04:52]} 5... g6 {[%clk 0:04:52.3]} 6. O-O {[%clk 0:04:51.2]} 6... Bg7 {[%clk
0:04:47.7]} 7. Nbd2 {[%clk 0:04:49.5]} 7... O-O {[%clk 0:04:45.8]} 8. c3 {[%clk
0:04:48.3]} 8... Bg4 {[%clk 0:04:40.2]} 9. Re1 {[%clk 0:04:47.2]} 9... e6 {[%clk
0:04:18.6]} 10. h3 {[%clk 0:04:46.5]} 10... Bxf3 {[%clk 0:04:14.1]} 11. Nxf3
{[%clk 0:04:46.4]} 11... Qb6 {[%clk 0:04:10.2]} 12. b3 {[%clk 0:03:58.9]} 12...
Nc6 {[%clk 0:04:02.5]} 13. Be3 {[%clk 0:03:55]} 13... Rac8 {[%clk 0:03:58.8]}
14. c4 {[%clk 0:03:51.9]} 14... Qc7 {[%clk 0:03:51.5]} 15. Rc1 {[%clk
0:03:41.3]} 15... Qd7 {[%clk 0:03:37.7]} 16. Ne5 {[%clk 0:03:20.8]} 16... Qc7
{[%clk 0:03:24.7]} 17. Qd2 {[%clk 0:02:22]} 17... Nxe5 {[%clk 0:03:20.9]} 18.
dxe5 {[%clk 0:02:20.5]} 18... Nd7 {[%clk 0:03:20.6]} 19. Bf4 {[%clk 0:02:11]}
19... Bxe5 {[%clk 0:03:16]} 20. Bxe5 {[%clk 0:02:10.1]} 20... Nxe5 {[%clk
0:03:12.8]} 21. cxd5 {[%clk 0:02:09.7]} 21... Qd6 {[%clk 0:03:09.2]} 22. Rxc8
{[%clk 0:01:59.7]} 22... Rxc8 {[%clk 0:03:09.1]} 23. Rxe5 {[%clk 0:01:41.2]}
23... Qxe5 {[%clk 0:03:05.7]} 24. dxe6 {[%clk 0:01:40.3]} 24... Qxe6 {[%clk
0:03:03.6]} 25. Bc4 {[%clk 0:01:39]} 25... Qe8 {[%clk 0:02:54.5]} 26. Qf4 {[%clk
0:01:35]} 26... Rd8 {[%clk 0:02:48.8]} 27. Qf3 {[%clk 0:01:32.9]} 27... Qd7
{[%clk 0:02:40.7]} 28. Qf6 {[%clk 0:01:21]} 28... Qd1+ {[%clk 0:02:37.3]} 29.
Kh2 {[%clk 0:01:20.5]} 29... Qd6+ {[%clk 0:02:33.3]} 30. Qxd6 {[%clk 0:01:19.7]}
30... Rxd6 {[%clk 0:02:31.4]} 31. a4 {[%clk 0:01:17.6]} 31... Rd2 {[%clk
0:02:26.9]} 32. Kg3 {[%clk 0:01:16.7]} 32... Kf8 {[%clk 0:02:23.6]} 33. f3
{[%clk 0:01:08.2]} 33... Ke7 {[%clk 0:02:21]} 34. Kg4 {[%clk 0:01:06.9]} 34...
Rxg2+ {[%clk 0:02:17.9]} 35. Kf4 {[%clk 0:01:04.2]} 35... Rc2 {[%clk 0:02:14.3]}
36. Kg4 {[%clk 0:01:02.5]} 36... Rc3 {[%clk 0:02:12.6]} 37. h4 {[%clk
0:01:01.5]} 37... Kd6 {[%clk 0:02:11.4]} 38. f4 {[%clk 0:00:58.5]} 38... f5+
{[%clk 0:02:07.4]} 39. Kg5 {[%clk 0:00:57.2]} 39... Rg3+ {[%clk 0:02:03.6]} 40.
Kh6 {[%clk 0:00:54.4]} 40... Rg4 {[%clk 0:02:02.7]} 41. Kxh7 {[%clk 0:00:53.1]}
41... Rxh4+ {[%clk 0:02:01.7]} 42. Kxg6 {[%clk 0:00:52.7]} 42... Rxf4 {[%clk
0:02:01.6]} 43. Kg5 {[%clk 0:00:51.9]} 43... Rf2 {[%clk 0:01:51.5]} 44. Kh4
{[%clk 0:00:51]} 44... a6 {[%clk 0:01:48.8]} 45. Kg3 {[%clk 0:00:50.3]} 45...
Rc2 {[%clk 0:01:42.4]} 46. Kf4 {[%clk 0:00:48.7]} 46... Rxc4+ {[%clk 0:01:34.7]}
47. bxc4 {[%clk 0:00:47.1]} 47... Kc5 {[%clk 0:01:34.4]} 48. Kxf5 {[%clk
0:00:46.7]} 48... Kxc4 {[%clk 0:01:33.8]} 49. Ke4 {[%clk 0:00:46.5]} 49... Kb3
{[%clk 0:01:32.1]} 50. Kd4 {[%clk 0:00:46.1]} 50... Kxa4 {[%clk 0:01:30.7]} 0-1

[Event "Live Chess"]
[Site "Chess.com"]
[Date "2023.05.21"]
[Round "-"]
[White "Leonid_Starozhilov"]
[Black "luckywookie"]
[Result "1-0"]
[WhiteElo "2633"]
[BlackElo "797"]
[TimeControl "300"]
[EndTime "5:36:12 PDT"]
[Termination "Leonid_Starozhilov won by checkmate"]

1. e4 {[%clk 0:04:58]} 1... c6 {[%clk 0:04:56.5]} 2. c4 {[%clk 0:04:54.1]} 2...
e5 {[%clk 0:04:51.2]} 3. Nf3 {[%clk 0:04:51.7]} 3... d6 {[%clk 0:04:49.3]} 4. d4
{[%clk 0:04:43.5]} 4... Bg4 {[%clk 0:04:36.9]} 5. dxe5 {[%clk 0:04:37.6]} 5...
Bxf3 {[%clk 0:04:30.6]} 6. gxf3 {[%clk 0:04:36.7]} 6... dxe5 {[%clk 0:04:18.5]}
7. Qxd8+ {[%clk 0:04:36.6]} 7... Kxd8 {[%clk 0:04:17.8]} 8. f4 {[%clk
0:04:36.2]} 8... Bc5 {[%clk 0:04:16.5]} 9. fxe5 {[%clk 0:04:33.4]} 9... Nd7
{[%clk 0:04:13]} 10. f4 {[%clk 0:04:30.7]} 10... Ne7 {[%clk 0:04:08.4]} 11. Nc3
{[%clk 0:04:27.8]} 11... Ng6 {[%clk 0:04:06.5]} 12. Bh3 {[%clk 0:04:18.5]} 12...
f6 {[%clk 0:03:50.4]} 13. e6 {[%clk 0:04:13.1]} 13... Nb6 {[%clk 0:03:42.2]} 14.
b3 {[%clk 0:04:08.4]} 14... Ke7 {[%clk 0:03:40.2]} 15. Bd2 {[%clk 0:04:01]}
15... Rad8 {[%clk 0:03:30.7]} 16. O-O-O {[%clk 0:03:54.5]} 16... Ba3+ {[%clk
0:03:27.3]} 17. Kc2 {[%clk 0:03:52.5]} 17... Nh4 {[%clk 0:03:11.5]} 18. Rhf1
{[%clk 0:03:42.7]} 18... g6 {[%clk 0:03:03.3]} 19. f5 {[%clk 0:03:36.6]} 19...
g5 {[%clk 0:02:57.4]} 20. Bxg5 {[%clk 0:03:06.4]} 20... fxg5 {[%clk 0:02:54.7]}
21. f6+ {[%clk 0:03:05.1]} 21... Kf8 {[%clk 0:02:43.7]} 22. e7+ {[%clk
0:03:04.1]} 22... Kf7 {[%clk 0:02:39.7]} 23. Rxd8 {[%clk 0:03:01.8]} 23... Rxd8
{[%clk 0:02:27.6]} 24. exd8=Q {[%clk 0:02:56.1]} 24... Kg6 {[%clk 0:02:22.4]}
25. Bg4 {[%clk 0:02:47.7]} 25... Ng2 {[%clk 0:02:19.6]} 26. Qg8+ {[%clk
0:02:44.8]} 26... Kh6 {[%clk 0:02:17.7]} 27. f7 {[%clk 0:02:42.6]} 27... Ne3+
{[%clk 0:02:15.8]} 28. Kd3 {[%clk 0:02:41]} 28... Nxf1 {[%clk 0:02:14.7]} 29.
f8=Q+ {[%clk 0:02:39.8]} 29... Bxf8 {[%clk 0:02:03.7]} 30. Qxf8+ {[%clk
0:02:39.7]} 30... Kg6 {[%clk 0:02:01.8]} 31. Qf5+ {[%clk 0:02:34.5]} 31... Kh6
{[%clk 0:01:59.8]} 32. Qf6# {[%clk 0:02:33.6]} 1-0

[Event "Live Chess"]
[Site "Chess.com"]
[Date "2023.05.21"]
[Round "-"]
[White "hturner40"]
[Black "ViktorTheCoolBoy"]
[Result "0-1"]
[WhiteElo "1790"]
[BlackElo "2477"]
[TimeControl "300"]
[EndTime "5:36:12 PDT"]
[Termination "ViktorTheCoolBoy won by resignation"]

1. Nf3 {[%clk 0:04:58.1]} 1... d5 {[%clk 0:04:57.8]} 2. g3 {[%clk 0:04:56.9]}
2... Nd7 {[%clk 0:04:53]} 3. d4 {[%clk 0:04:53.6]} 3... Nb6 {[%clk 0:04:49.6]}
4. Bg2 {[%clk 0:04:51.4]} 4... Bf5 {[%clk 0:04:38.2]} 5. O-O {[%clk 0:04:41.4]}
5... e6 {[%clk 0:04:35.8]} 6. Nbd2 {[%clk 0:04:36.6]} 6... Nf6 {[%clk
0:04:32.4]} 7. Ne5 {[%clk 0:04:28.6]} 7... Bd6 {[%clk 0:04:28.1]} 8. f3 {[%clk
0:04:13.5]} 8... h6 {[%clk 0:04:26.7]} 9. e4 {[%clk 0:04:10.8]} 9... Bh7 {[%clk
0:04:25.6]} 10. Nxf7 {[%clk 0:03:59.5]} 10... Kxf7 {[%clk 0:04:23.8]} 11. e5
{[%clk 0:03:58.4]} 11... c5 {[%clk 0:04:20.6]} 12. exf6 {[%clk 0:03:42.4]} 12...
Qxf6 {[%clk 0:04:16.7]} 13. dxc5 {[%clk 0:03:36.8]} 13... Bxc5+ {[%clk
0:04:15.8]} 14. Kh1 {[%clk 0:03:36]} 14... Rac8 {[%clk 0:04:14.2]} 15. Nb3
{[%clk 0:03:34.5]} 15... Bd6 {[%clk 0:04:12.3]} 16. c3 {[%clk 0:03:08.5]} 16...
h5 {[%clk 0:04:10.7]} 17. Be3 {[%clk 0:02:58.4]} 17... h4 {[%clk 0:04:08.4]} 18.
Bd4 {[%clk 0:02:52.5]} 18... Qh6 {[%clk 0:04:06.4]} 19. Qc1 {[%clk 0:01:50.3]}
19... h3 {[%clk 0:03:56.8]} 20. Qxh6 {[%clk 0:01:43.4]} 20... hxg2+ {[%clk
0:03:55.7]} 21. Kxg2 {[%clk 0:01:42.2]} 21... gxh6 {[%clk 0:03:55]} 22. Bxh8
{[%clk 0:01:40.6]} 22... Rxh8 {[%clk 0:03:54.9]} 23. Rad1 {[%clk 0:01:22.4]}
23... Nc4 {[%clk 0:03:52.2]} 24. Rf2 {[%clk 0:01:10.4]} 24... Ne3+ {[%clk
0:03:49]} 0-1

[Event "Live Chess"]
[Site "Chess.com"]
[Date "2023.05.21"]
[Round "-"]
[White "f4nomore"]
[Black "SupremeTactician"]
[Result "0-1"]
[WhiteElo "1402"]
[BlackElo "2248"]
[TimeControl "300"]
[EndTime "5:36:21 PDT"]
[Termination "SupremeTactician won by resignation"]

1. b3 {[%clk 0:04:59.2]} 1... Nf6 {[%clk 0:04:57.6]} 2. Bb2 {[%clk 0:04:58]}
2... e6 {[%clk 0:04:57.1]} 3. e3 {[%clk 0:04:55.9]} 3... Be7 {[%clk 0:04:56]} 4.
Nc3 {[%clk 0:04:54.5]} 4... d5 {[%clk 0:04:55.6]} 5. Nge2 {[%clk 0:04:50.9]}
5... c5 {[%clk 0:04:54.6]} 6. f4 {[%clk 0:04:49.6]} 6... Nc6 {[%clk 0:04:52.3]}
7. g3 {[%clk 0:04:48.4]} 7... O-O {[%clk 0:04:47.4]} 8. Bg2 {[%clk 0:04:47.5]}
8... h6 {[%clk 0:04:34.3]} 9. O-O {[%clk 0:04:46]} 9... a6 {[%clk 0:04:30.5]}
10. a4 {[%clk 0:04:43.4]} 10... Bd7 {[%clk 0:04:24.1]} 11. d3 {[%clk 0:04:37.3]}
11... Rc8 {[%clk 0:04:19.3]} 12. Bc1 {[%clk 0:04:34.6]} 12... Nb4 {[%clk
0:04:13.8]} 13. Ba3 {[%clk 0:04:16.3]} 13... a5 {[%clk 0:04:01.2]} 14. Bxb4
{[%clk 0:04:12.7]} 14... axb4 {[%clk 0:03:51]} 15. Nb5 {[%clk 0:04:10.6]} 15...
Bxb5 {[%clk 0:03:46.8]} 16. axb5 {[%clk 0:04:08.7]} 16... Qb6 {[%clk 0:03:46.5]}
17. d4 {[%clk 0:03:58.2]} 17... c4 {[%clk 0:03:10.3]} 18. bxc4 {[%clk
0:03:52.6]} 18... Rxc4 {[%clk 0:03:03.7]} 19. Nc1 {[%clk 0:03:32]} 19... Rfc8
{[%clk 0:01:48.8]} 20. Nd3 {[%clk 0:03:23.4]} 20... Rxc2 {[%clk 0:01:46.7]} 21.
Nxb4 {[%clk 0:03:19.1]} 21... Bxb4 {[%clk 0:01:43.8]} 22. Rb1 {[%clk 0:03:14.9]}
22... Bd6 {[%clk 0:01:39.4]} 23. Qd3 {[%clk 0:03:07.9]} 23... R8c3 {[%clk
0:01:36]} 24. Qd1 {[%clk 0:03:03.7]} 24... Ra2 {[%clk 0:01:32.6]} 25. f5 {[%clk
0:02:54.5]} 25... Rcc2 {[%clk 0:01:27.8]} 26. Bh1 {[%clk 0:02:25.8]} 26... Rxh2
{[%clk 0:01:22.5]} 27. fxe6 {[%clk 0:02:21.3]} 27... fxe6 {[%clk 0:01:21]} 28.
Qf3 {[%clk 0:02:13.8]} 28... Rh3 {[%clk 0:01:15.4]} 29. Bg2 {[%clk 0:02:04.8]}
29... Rxg3 {[%clk 0:01:12.7]} 0-1

[Event "Live Chess"]
[Site "Chess.com"]
[Date "2023.05.21"]
[Round "-"]
[White "Pandreq"]
[Black "RockTroll"]
[Result "0-1"]
[WhiteElo "1216"]
[BlackElo "2225"]
[TimeControl "300"]
[EndTime "5:36:25 PDT"]
[Termination "RockTroll won by resignation"]

1. d4 {[%clk 0:04:58.2]} 1... Nf6 {[%clk 0:04:59.4]} 2. c4 {[%clk 0:04:57]} 2...
g6 {[%clk 0:04:59.3]} 3. Nc3 {[%clk 0:04:55.3]} 3... d5 {[%clk 0:04:59]} 4. cxd5
{[%clk 0:04:52.9]} 4... Nxd5 {[%clk 0:04:58.9]} 5. e4 {[%clk 0:04:52.1]} 5...
Nxc3 {[%clk 0:04:58.6]} 6. bxc3 {[%clk 0:04:50.9]} 6... c5 {[%clk 0:04:58.5]} 7.
Nf3 {[%clk 0:04:49.2]} 7... Bg7 {[%clk 0:04:57.9]} 8. Be3 {[%clk 0:04:44.4]}
8... O-O {[%clk 0:04:55.2]} 9. Bc4 {[%clk 0:04:41.2]} 9... Bg4 {[%clk
0:04:45.1]} 10. e5 {[%clk 0:04:33.2]} 10... Qa5 {[%clk 0:04:39.4]} 11. Rc1
{[%clk 0:04:16]} 11... cxd4 {[%clk 0:04:36.3]} 12. Bxd4 {[%clk 0:04:03.8]} 12...
Nc6 {[%clk 0:04:34.4]} 13. O-O {[%clk 0:03:59.5]} 13... Nxe5 {[%clk 0:04:28.9]}
14. Bxe5 {[%clk 0:03:51.7]} 14... Bxe5 {[%clk 0:04:27.5]} 15. Qd3 {[%clk
0:03:39.9]} 15... Bxf3 {[%clk 0:04:21.9]} 16. Qxf3 {[%clk 0:03:37.3]} 16...
Bxh2+ {[%clk 0:04:19.8]} 17. Kxh2 {[%clk 0:03:28.9]} 17... Qc7+ {[%clk
0:04:19.4]} 18. Kg1 {[%clk 0:03:26.1]} 18... Qxc4 {[%clk 0:04:18.9]} 19. Qxb7
{[%clk 0:03:22.3]} 19... Qxa2 {[%clk 0:04:17.7]} 20. Qxe7 {[%clk 0:03:19]} 20...
a5 {[%clk 0:04:16.8]} 21. Qe5 {[%clk 0:03:05.2]} 21... a4 {[%clk 0:04:15.5]} 22.
Ra1 {[%clk 0:03:03.3]} 22... Qc4 {[%clk 0:04:13.2]} 23. Rfd1 {[%clk 0:02:55.4]}
23... a3 {[%clk 0:04:11.7]} 24. Qd4 {[%clk 0:02:44.2]} 24... Qxd4 {[%clk
0:04:08.8]} 25. Rxd4 {[%clk 0:02:43.2]} 25... Rfc8 {[%clk 0:04:07.4]} 26. c4
{[%clk 0:02:39.6]} 26... Ra4 {[%clk 0:04:03]} 27. f3 {[%clk 0:02:19.3]} 27... h5
{[%clk 0:04:00.1]} 28. Kf2 {[%clk 0:02:17.9]} 28... Kg7 {[%clk 0:03:59.6]} 29.
Ke3 {[%clk 0:02:16.8]} 29... a2 {[%clk 0:03:55.9]} 30. Rd2 {[%clk 0:02:12.6]}
30... Rca8 {[%clk 0:03:48.2]} 31. c5 {[%clk 0:02:10.3]} 31... Kf6 {[%clk
0:03:43.7]} 32. c6 {[%clk 0:02:08.4]} 32... Ke5 {[%clk 0:03:41.9]} 33. c7 {[%clk
0:02:02.9]} 33... Ra3+ {[%clk 0:03:40.6]} 34. Ke2 {[%clk 0:01:59.4]} 34... Rc3
{[%clk 0:03:38.8]} 35. Rdxa2 {[%clk 0:01:53.3]} 35... Rxa2+ {[%clk 0:03:38.7]}
36. Rxa2 {[%clk 0:01:52.4]} 36... Rxc7 {[%clk 0:03:38.4]} 37. Ra5+ {[%clk
0:01:50.6]} 37... Kf4 {[%clk 0:03:36.7]} 38. Kd2 {[%clk 0:01:23.1]} 38... Rb7
{[%clk 0:03:29.7]} 39. Kc2 {[%clk 0:01:20.3]} 39... f5 {[%clk 0:03:22.3]} 40.
Ra4+ {[%clk 0:01:13.2]} 40... Kg3 {[%clk 0:03:20]} 41. Ra6 {[%clk 0:01:11.1]}
41... Rg7 {[%clk 0:03:18.1]} 42. Ra2 {[%clk 0:01:01.7]} 42... Kxg2 {[%clk
0:03:17.2]} 43. Kd3+ {[%clk 0:01:00.8]} 43... Kxf3 {[%clk 0:03:16.4]} 44. Re2
{[%clk 0:00:57.8]} 44... h4 {[%clk 0:03:15.2]} 45. Re3+ {[%clk 0:00:55.6]} 45...
Kg4 {[%clk 0:03:14.4]} 46. Ke2 {[%clk 0:00:54.1]} 46... g5 {[%clk 0:03:13.6]}
47. Kf2 {[%clk 0:00:52.8]} 47... f4 {[%clk 0:03:13]} 48. Rf3 {[%clk 0:00:51]}
48... Ra7 {[%clk 0:03:12.1]} 49. Kg2 {[%clk 0:00:44]} 49... Ra2+ {[%clk
0:03:11.4]} 50. Rf2 {[%clk 0:00:43.3]} 50... Rxf2+ {[%clk 0:03:09.4]} 51. Kxf2
{[%clk 0:00:42.8]} 51... Kf5 {[%clk 0:03:08.6]} 52. Kf3 {[%clk 0:00:41.3]} 52...
g4+ {[%clk 0:03:08.5]} 53. Kg2 {[%clk 0:00:39.9]} 53... Ke4 {[%clk 0:03:07.7]}
54. Kf2 {[%clk 0:00:38.9]} 54... Kd3 {[%clk 0:03:06.3]} 55. Kg2 {[%clk
0:00:36.1]} 55... Ke3 {[%clk 0:03:05.6]} 56. Kh2 {[%clk 0:00:35]} 0-1

[Event "Live Chess"]
[Site "Chess.com"]
[Date "2023.05.21"]
[Round "-"]
[White "LL220284LL"]
[Black "onemoretime1975"]
[Result "0-1"]
[WhiteElo "2271"]
[BlackElo "1875"]
[TimeControl "300"]
[EndTime "5:36:41 PDT"]
[Termination "onemoretime1975 won by checkmate"]

1. c4 {[%clk 0:04:59.4]} 1... e6 {[%clk 0:04:57]} 2. g3 {[%clk 0:04:51.9]} 2...
d5 {[%clk 0:04:54]} 3. Bg2 {[%clk 0:04:51.8]} 3... c6 {[%clk 0:04:52.6]} 4. b3
{[%clk 0:04:50.4]} 4... Nf6 {[%clk 0:04:51.2]} 5. Bb2 {[%clk 0:04:45.6]} 5...
Be7 {[%clk 0:04:50.1]} 6. Nf3 {[%clk 0:04:42.1]} 6... O-O {[%clk 0:04:48.9]} 7.
O-O {[%clk 0:04:28.3]} 7... Ne4 {[%clk 0:04:47.6]} 8. d3 {[%clk 0:04:23.5]} 8...
Ng5 {[%clk 0:04:36.4]} 9. Nbd2 {[%clk 0:04:18.6]} 9... Nxf3+ {[%clk 0:04:33.2]}
10. Nxf3 {[%clk 0:04:16.3]} 10... Bf6 {[%clk 0:04:32]} 11. d4 {[%clk 0:04:13.4]}
11... Nd7 {[%clk 0:04:26.9]} 12. Qc2 {[%clk 0:04:06.7]} 12... g6 {[%clk
0:04:22.5]} 13. Rad1 {[%clk 0:03:56.9]} 13... Bg7 {[%clk 0:04:20.2]} 14. Nd2
{[%clk 0:03:54.6]} 14... Nf6 {[%clk 0:04:18.3]} 15. e4 {[%clk 0:03:52.7]} 15...
dxe4 {[%clk 0:04:16.3]} 16. Nxe4 {[%clk 0:03:52.6]} 16... Nxe4 {[%clk
0:04:14.4]} 17. Bxe4 {[%clk 0:03:52.5]} 17... Qc7 {[%clk 0:04:03.5]} 18. h4
{[%clk 0:03:51.1]} 18... a5 {[%clk 0:03:52]} 19. h5 {[%clk 0:03:48.9]} 19... a4
{[%clk 0:03:48.8]} 20. hxg6 {[%clk 0:03:47.7]} 20... hxg6 {[%clk 0:03:46.6]} 21.
b4 {[%clk 0:03:38.9]} 21... a3 {[%clk 0:03:33.3]} 22. Bc3 {[%clk 0:03:37.6]}
22... b5 {[%clk 0:03:31.1]} 23. c5 {[%clk 0:03:35.7]} 23... Rd8 {[%clk
0:03:23.5]} 24. Qe2 {[%clk 0:03:30.8]} 24... e5 {[%clk 0:03:10.4]} 25. dxe5
{[%clk 0:03:26]} 25... Rxd1 {[%clk 0:03:07.4]} 26. Qxd1 {[%clk 0:03:18.1]} 26...
Be6 {[%clk 0:03:00]} 27. f4 {[%clk 0:03:12.7]} 27... Bxa2 {[%clk 0:02:52.1]} 28.
Qf3 {[%clk 0:02:58.2]} 28... Ra6 {[%clk 0:02:31]} 29. Ra1 {[%clk 0:02:55.2]}
29... Bc4 {[%clk 0:02:27.6]} 30. Qe3 {[%clk 0:02:46.3]} 30... Ra7 {[%clk
0:02:12.5]} 31. Kf2 {[%clk 0:02:43.9]} 31... a2 {[%clk 0:02:06.1]} 32. Qf3
{[%clk 0:02:37.3]} 32... Ra3 {[%clk 0:01:58.7]} 33. Qe3 {[%clk 0:02:21.3]} 33...
Qd7 {[%clk 0:01:43.8]} 34. Qd2 {[%clk 0:02:13.3]} 34... Qh3 {[%clk 0:01:36.3]}
35. Rh1 {[%clk 0:02:07.7]} 35... Qc8 {[%clk 0:01:20.1]} 36. Ba1 {[%clk
0:02:06.6]} 36... Qg4 {[%clk 0:00:58.5]} 37. Qd8+ {[%clk 0:01:56.2]} 37... Bf8
{[%clk 0:00:57]} 38. Rg1 {[%clk 0:01:48.2]} 38... Qe2# {[%clk 0:00:52.7]} 0-1

[Event "Live Chess"]
[Site "Chess.com"]
[Date "2023.05.21"]
[Round "-"]
[White "JoeyCage"]
[Black "whatnot126"]
[Result "1-0"]
[WhiteElo "2253"]
[BlackElo "2058"]
[TimeControl "300"]
[EndTime "5:36:45 PDT"]
[Termination "JoeyCage won by resignation"]

1. e4 {[%clk 0:04:57.3]} 1... d6 {[%clk 0:04:59.2]} 2. d4 {[%clk 0:04:56.1]}
2... Nf6 {[%clk 0:04:58.6]} 3. Nc3 {[%clk 0:04:55.2]} 3... g6 {[%clk 0:04:58.1]}
4. Nf3 {[%clk 0:04:54]} 4... Bg7 {[%clk 0:04:57.6]} 5. h3 {[%clk 0:04:52.8]}
5... O-O {[%clk 0:04:55.9]} 6. Bc4 {[%clk 0:04:51.5]} 6... Nxe4 {[%clk
0:04:54.4]} 7. Nxe4 {[%clk 0:04:50.2]} 7... d5 {[%clk 0:04:53.7]} 8. Bd3 {[%clk
0:04:49.6]} 8... dxe4 {[%clk 0:04:52.9]} 9. Bxe4 {[%clk 0:04:48.8]} 9... c5
{[%clk 0:04:50.8]} 10. dxc5 {[%clk 0:04:45.5]} 10... Qc7 {[%clk 0:04:32.6]} 11.
O-O {[%clk 0:04:39.2]} 11... Qxc5 {[%clk 0:04:26.4]} 12. Qe2 {[%clk 0:04:37.6]}
12... e5 {[%clk 0:04:17.7]} 13. c3 {[%clk 0:04:35.8]} 13... Na6 {[%clk
0:04:11.6]} 14. Rd1 {[%clk 0:04:33.5]} 14... Be6 {[%clk 0:04:01.9]} 15. Be3
{[%clk 0:04:31.3]} 15... Qe7 {[%clk 0:03:57.5]} 16. Qb5 {[%clk 0:04:27.7]} 16...
Rab8 {[%clk 0:03:33.2]} 17. Bxa7 {[%clk 0:04:16.6]} 17... Ra8 {[%clk 0:03:07.9]}
18. Be3 {[%clk 0:04:13.8]} 18... f5 {[%clk 0:03:00.2]} 19. Bd5 {[%clk
0:04:12.3]} 19... f4 {[%clk 0:02:56.9]} 20. Bb6 {[%clk 0:04:08.3]} 20... h6
{[%clk 0:02:39.2]} 21. Bxe6+ {[%clk 0:04:05.6]} 21... Qxe6 {[%clk 0:02:39.1]}
22. Qd5 {[%clk 0:04:04.6]} 22... Qxd5 {[%clk 0:02:37.5]} 23. Rxd5 {[%clk
0:04:03.1]} 23... e4 {[%clk 0:02:30.7]} 24. Nd4 {[%clk 0:03:58.5]} 24... Rae8
{[%clk 0:02:26.1]} 25. Ne6 {[%clk 0:03:55.6]} 25... Rxe6 {[%clk 0:02:23.2]} 26.
Bd4 {[%clk 0:03:52.4]} 26... Bxd4 {[%clk 0:02:19.9]} 27. Rxd4 {[%clk 0:03:51.1]}
27... e3 {[%clk 0:02:18.3]} 28. Re1 {[%clk 0:03:49]} 28... Nc5 {[%clk 0:02:13]}
29. a4 {[%clk 0:03:39.6]} 29... exf2+ {[%clk 0:02:09.1]} 30. Kxf2 {[%clk
0:03:37.2]} 30... g5 {[%clk 0:01:59.4]} 31. a5 {[%clk 0:03:33.9]} 31... Rfe8
{[%clk 0:01:57.3]} 32. Rxe6 {[%clk 0:03:31]} 32... Rxe6 {[%clk 0:01:57.2]} 33.
b4 {[%clk 0:03:28.7]} 33... Ne4+ {[%clk 0:01:56.2]} 34. Kf3 {[%clk 0:03:21.9]}
34... Nxc3 {[%clk 0:01:53.8]} 35. Rd7 {[%clk 0:03:19.1]} 35... Re3+ {[%clk
0:01:49.4]} 36. Kf2 {[%clk 0:03:16.9]} 36... Re2+ {[%clk 0:01:47.2]} 37. Kf1
{[%clk 0:03:15.3]} 37... Rb2 {[%clk 0:01:39.7]} 38. Rxb7 {[%clk 0:03:13.1]}
38... Nd5 {[%clk 0:01:39.3]} 39. b5 {[%clk 0:03:08.2]} 39... h5 {[%clk
0:01:38.6]} 40. a6 {[%clk 0:03:06.6]} 40... Ne3+ {[%clk 0:01:26.5]} 41. Ke1
{[%clk 0:03:04.6]} 41... Nxg2+ {[%clk 0:01:20.4]} 42. Kd1 {[%clk 0:03:03.4]}
42... Ne3+ {[%clk 0:01:18.9]} 43. Kc1 {[%clk 0:03:01.7]} 43... Rc2+ {[%clk
0:01:15.2]} 44. Kb1 {[%clk 0:03:00.4]} 44... f3 {[%clk 0:01:14.3]} 45. a7 {[%clk
0:02:58.8]} 45... Rc8 {[%clk 0:01:06.9]} 46. Rb8 {[%clk 0:02:57.4]} 46... Rxb8
{[%clk 0:01:02.9]} 47. axb8=Q+ {[%clk 0:02:55.7]} 47... Kg7 {[%clk 0:01:02.8]}
48. Qe5+ {[%clk 0:02:53.6]} 1-0